[Event "Allsvenskan Div I 3 2021/2022: SS Manhem - SS Allians/Motala SS"]
[Site "Schackcentrum, Vegatan 20, Gothenburg, Sweden"]
[Date "2022.04.10"]
[Round "1.1"]
[White "Andersson, Lars"]
[Black "Welin, Mats"]
[Result "1/2-1/2"]
[TimeControl "90 minutes for 40 moves + 30 minutes for the rest of the game + 30 seconds per move from move one."]
[BlackTitle "FM"]
[WhiteFideId "1706772"]
[BlackFideId "1705180"]
[WhiteElo "2066"]
[BlackElo "2329"]

1. d4 {[%clk 01:30:54]} {[%emt 00:00:05]} d5 {[%clk 01:30:05]} {[%emt
00:00:55]} 2. Bf4 {[%clk 01:31:10]} {[%emt 00:00:14]} c5 {[%clk 01:30:00]}
{[%emt 00:00:35]} 3. e4 {[%clk 01:31:19]} {[%emt 00:00:22]} dxe4 {[%clk
01:29:24]} {[%emt 00:01:06]} 4. d5 {[%clk 01:31:42]} {[%emt 00:00:07]} Nf6
{[%clk 01:28:49]} {[%emt 00:01:04]} 5. Nc3 {[%clk 01:32:05]} {[%emt 00:00:07]}
g6 {[%clk 01:27:17]} {[%emt 00:02:02]} 6. Qd2 {[%clk 01:29:06]} {[%emt
00:03:29]} Bg7 {[%clk 01:24:28]} {[%emt 00:03:19]} 7. O-O-O {[%clk 01:28:47]}
{[%emt 00:00:49]} O-O {[%clk 01:21:22]} {[%emt 00:03:36]} 8. Nge2 {[%clk
01:20:06]} {[%emt 00:09:11]} Qb6 {[%clk 01:06:50]} {[%emt 00:15:03]} 9. Ng3
{[%clk 01:07:57]} {[%emt 00:12:39]} e6 {[%clk 01:02:27]} {[%emt 00:04:52]} 10.
Na4 {[%clk 00:41:05]} {[%emt 00:27:22]} Qb4 {[%clk 00:57:18]} {[%emt 00:05:39]}
11. Qxb4 {[%clk 00:38:05]} {[%emt 00:03:30]} cxb4 {[%clk 00:55:47]} {[%emt
00:02:01]} 12. dxe6 {[%clk 00:29:52]} {[%emt 00:08:43]} Bxe6 {[%clk 00:50:03]}
{[%emt 00:06:14]} 13. Nc5 {[%clk 00:29:26]} {[%emt 00:00:56]} Bd5 {[%clk
00:45:59]} {[%emt 00:04:34]} 14. Bg5 {[%clk 00:26:27]} {[%emt 00:03:29]} Bc6
{[%clk 00:40:48]} {[%emt 00:05:42]} 15. Bxf6 {[%clk 00:23:45]} {[%emt
00:03:11]} Bxf6 {[%clk 00:40:51]} {[%emt 00:00:27]} 16. Ncxe4 {[%clk 00:19:49]}
{[%emt 00:04:26]} Be5 {[%clk 00:38:06]} {[%emt 00:03:15]} 17. f3 {[%clk
00:16:10]} {[%emt 00:04:09]} Nd7 {[%clk 00:37:29]} {[%emt 00:01:07]} 18. Bd3
{[%clk 00:11:27]} {[%emt 00:05:13]} Nb6 {[%clk 00:34:36]} {[%emt 00:03:23]} 19.
Ne2 {[%clk 00:04:31]} {[%emt 00:07:26]} Na4 {[%clk 00:31:57]} {[%emt 00:03:09]}
20. c3 {[%clk 00:01:42]} {[%emt 00:03:19]} bxc3 {[%clk 00:30:23]} {[%emt
00:02:04]} 21. N4xc3 {[%clk 00:01:39]} {[%emt 00:00:33]} Rac8 {[%clk 00:27:19]}
{[%emt 00:03:34]} 22. Bc2 {[%clk 00:01:20]} {[%emt 00:00:49]} Nxc3 {[%clk
00:26:05]} {[%emt 00:01:45]} 23. Nxc3 {[%clk 00:01:48]} {[%emt 00:00:01]} Rfd8
{[%clk 00:25:52]} {[%emt 00:00:42]} 24. Rxd8+ {[%clk 00:01:33]} {[%emt
00:00:45]} Rxd8 {[%clk 00:25:59]} {[%emt 00:00:23]} 25. Be4 {[%clk 00:01:03]}
{[%emt 00:01:00]} Bxc3 {[%clk 00:25:53]} {[%emt 00:00:37]} 26. bxc3 {[%clk
00:01:31]} {[%emt 00:00:02]} Bxe4 {[%clk 00:26:08]} {[%emt 00:00:15]} 27. fxe4
{[%clk 00:01:59]} Rd3 {[%clk 00:23:41]} {[%emt 00:02:57]} 28. Kc2 {[%clk
00:02:24]} {[%emt 00:00:05]} Re3 {[%clk 00:24:05]} {[%emt 00:00:06]} 29. Rd1
{[%clk 00:00:46]} {[%emt 00:02:09]} Rxe4 {[%clk 00:21:25]} {[%emt 00:03:10]} 30.
Rd7 {[%clk 00:01:06]} {[%emt 00:00:09]} Ra4 {[%clk 00:21:24]} {[%emt 00:00:31]}
31. Rxb7 {[%clk 00:00:35]} {[%emt 00:01:01]} Rxa2+ {[%clk 00:21:47]} {[%emt
00:00:08]} 32. Kb3 {[%clk 00:00:59]} {[%emt 00:00:05]} Rxg2 {[%clk 00:22:03]}
{[%emt 00:00:14]} 33. c4 {[%clk 00:01:23]} {[%emt 00:00:06]} Rxh2 {[%clk
00:22:10]} {[%emt 00:00:23]} 34. c5 {[%clk 00:01:42]} {[%emt 00:00:12]} Rh1
{[%clk 00:22:33]} {[%emt 00:00:06]} 35. Kc4 {[%clk 00:01:37]} {[%emt 00:00:35]}
Rc1+ {[%clk 00:22:37]} {[%emt 00:00:27]} 36. Kd5 {[%clk 00:01:50]} {[%emt
00:00:16]} h5 {[%clk 00:18:30]} {[%emt 00:04:37]} 37. c6 {[%clk 00:02:13]}
{[%emt 00:00:07]} h4 {[%clk 00:13:43]} {[%emt 00:05:17]} 38. Rb4 {[%clk
00:01:06]} {[%emt 00:01:38]} h3 {[%clk 00:13:36]} {[%emt 00:00:36]} 39. Rh4
{[%clk 00:00:49]} {[%emt 00:00:47]} Rc3 {[%clk 00:11:31]} {[%emt 00:02:35]} 40.
Kd6 {[%clk 00:00:48]} {[%emt 00:00:31]} g5 {[%clk 00:10:21]} {[%emt 00:01:40]}
41. Rh5 {[%clk 00:00:35]} {[%emt 00:00:43]} f6 {[%clk 00:01:11]} {[%emt
00:09:40]} 42. c7 {[%clk 00:29:22]} {[%emt 00:01:43]} Kf7 {[%clk 00:30:04]}
{[%emt 00:01:37]} 43. Rh7+ {[%clk 00:27:38]} {[%emt 00:02:14]} Kg6 {[%clk
00:30:23]} {[%emt 00:00:11]} 44. Rxh3 {[%clk 00:27:53]} {[%emt 00:00:15]} Rc4
{[%clk 00:29:35]} {[%emt 00:01:18]} 45. Rh8 {[%clk 00:26:54]} {[%emt 00:01:29]}
Rxc7 {[%clk 00:25:37]} {[%emt 00:04:28]} 46. Kxc7 {[%clk 00:27:18]} {[%emt
00:00:06]} Kf5 {[%clk 00:26:00]} {[%emt 00:00:07]} 47. Kd6 {[%clk 00:27:23]}
{[%emt 00:00:25]} g4 {[%clk 00:26:16]} {[%emt 00:00:14]} 48. Rg8 {[%clk
00:08:49]} {[%emt 00:19:04]} Kf4 {[%clk 00:26:21]} {[%emt 00:00:25]} 49. Ke6
{[%clk 00:08:55]} {[%emt 00:00:25]} g3 {[%clk 00:24:59]} {[%emt 00:01:52]} 50.
Kxf6 {[%clk 00:07:19]} {[%emt 00:02:06]} a5 {[%clk 00:24:52]} {[%emt 00:00:37]}
51. Ke6 {[%clk 00:07:35]} {[%emt 00:00:15]} Kf3 {[%clk 00:25:11]} {[%emt
00:00:10]} 52. Kd5 {[%clk 00:07:24]} {[%emt 00:00:41]} g2 {[%clk 00:25:35]}
{[%emt 00:00:07]} 53. Kc4 {[%clk 00:07:37]} {[%emt 00:00:16]} Kf2 {[%clk
00:26:00]} {[%emt 00:00:05]} 54. Kb5 {[%clk 00:07:48]} {[%emt 00:00:19]} g1=Q
{[%clk 00:26:24]} {[%emt 00:00:06]} 55. Rxg1 {[%clk 00:08:11]} {[%emt
00:00:07]} Kxg1 {[%clk 00:26:51]} {[%emt 00:00:03]} 56. Kxa5 {[%clk 00:08:34]}
{[%emt 00:00:07]} 1/2-1/2

[Event "Allsvenskan Div I 3 2021/2022: SS Manhem - SS Allians/Motala SS"]
[Site "Schackcentrum, Vegatan 20, Gothenburg, Sweden"]
[Date "2022.04.10"]
[Round "1.2"]
[White "Fendrich, David"]
[Black "Andersson, Rikard"]
[Result "1-0"]
[TimeControl "90 minutes for 40 moves + 30 minutes for the rest of the game + 30 seconds per move from move one."]
[WhiteFideId "1705725"]
[BlackFideId "1716506"]
[WhiteElo "2186"]
[BlackElo "2079"]

1. Nf3 {[%clk 01:30:57]} {[%emt 00:00:02]} e6 {[%clk 01:30:13]} {[%emt
00:00:47]} 2. g3 {[%clk 01:30:57]} {[%emt 00:00:30]} c5 {[%clk 01:29:29]}
{[%emt 00:01:13]} 3. Bg2 {[%clk 01:31:19]} {[%emt 00:00:08]} d5 {[%clk
01:29:12]} {[%emt 00:00:47]} 4. O-O {[%clk 01:31:17]} {[%emt 00:00:32]} Nf6
{[%clk 01:29:36]} {[%emt 00:00:06]} 5. b3 {[%clk 01:25:54]} {[%emt 00:05:53]}
b6 {[%clk 01:29:35]} {[%emt 00:00:30]} 6. c4 {[%clk 01:22:20]} {[%emt
00:04:05]} Bb7 {[%clk 01:29:32]} {[%emt 00:00:33]} 7. cxd5 {[%clk 01:22:34]}
{[%emt 00:00:16]} Nxd5 {[%clk 01:27:28]} {[%emt 00:02:34]} 8. Bb2 {[%clk
01:22:37]} {[%emt 00:00:27]} Nd7 {[%clk 01:26:02]} {[%emt 00:01:56]} 9. d4
{[%clk 01:14:03]} {[%emt 00:09:04]} N5f6 {[%clk 01:24:39]} {[%emt 00:01:54]} 10.
Nc3 {[%clk 01:09:21]} {[%emt 00:05:11]} Be7 {[%clk 01:22:08]} {[%emt 00:03:01]}
11. e4 {[%clk 00:53:26]} {[%emt 00:16:25]} Nxe4 {[%clk 01:15:20]} {[%emt
00:07:18]} 12. Nxe4 {[%clk 00:51:17]} {[%emt 00:02:40]} Bxe4 {[%clk 01:15:32]}
{[%emt 00:00:17]} 13. dxc5 {[%clk 00:48:51]} {[%emt 00:02:56]} Nxc5 {[%clk
01:15:14]} {[%emt 00:00:48]} 14. Bxg7 {[%clk 00:48:49]} {[%emt 00:00:32]} Qxd1
{[%clk 01:11:08]} {[%emt 00:04:35]} 15. Rfxd1 {[%clk 00:46:40]} {[%emt
00:02:39]} Rg8 {[%clk 01:11:12]} {[%emt 00:00:27]} 16. Bd4 {[%clk 00:46:15]}
{[%emt 00:00:54]} Rd8 {[%clk 01:04:50]} {[%emt 00:06:52]} 17. Ne5 {[%clk
00:40:17]} {[%emt 00:06:27]} Bxg2 {[%clk 00:58:02]} {[%emt 00:07:19]} 18. Kxg2
{[%clk 00:39:59]} {[%emt 00:00:49]} Bf6 {[%clk 00:53:55]} {[%emt 00:04:37]} 19.
Nc6 {[%clk 00:28:28]} {[%emt 00:12:01]} Bxd4 {[%clk 00:53:56]} {[%emt
00:00:30]} 20. Nxd4 {[%clk 00:28:18]} {[%emt 00:00:39]} a5 {[%clk 00:50:53]}
{[%emt 00:03:31]} 21. f4 {[%clk 00:18:09]} {[%emt 00:10:39]} Rd5 {[%clk
00:46:46]} {[%emt 00:04:37]} 22. Nc6 {[%clk 00:10:29]} {[%emt 00:08:11]} f6
{[%clk 00:43:58]} {[%emt 00:03:19]} 23. Rxd5 {[%clk 00:09:41]} {[%emt
00:01:18]} exd5 {[%clk 00:44:08]} {[%emt 00:00:19]} 24. Rd1 {[%clk 00:06:13]}
{[%emt 00:03:57]} Kd7 {[%clk 00:44:12]} {[%emt 00:00:27]} 25. Na7 {[%clk
00:06:19]} {[%emt 00:00:24]} Ra8 {[%clk 00:38:42]} {[%emt 00:06:00]} 26. Nb5
{[%clk 00:05:21]} {[%emt 00:01:28]} Kc6 {[%clk 00:38:42]} {[%emt 00:00:29]} 27.
Nd4+ {[%clk 00:05:14]} {[%emt 00:00:38]} Kc7 {[%clk 00:37:28]} {[%emt
00:01:44]} 28. Nb5+ {[%clk 00:05:32]} {[%emt 00:00:12]} Kc6 {[%clk 00:37:46]}
{[%emt 00:00:11]} 29. Nd4+ {[%clk 00:05:59]} {[%emt 00:00:04]} Kc7 {[%clk
00:38:11]} {[%emt 00:00:05]} 30. Kf3 {[%clk 00:04:06]} {[%emt 00:02:23]} Rd8
{[%clk 00:33:34]} {[%emt 00:05:07]} 31. Kg4 {[%clk 00:03:05]} {[%emt 00:01:32]}
Kb7 {[%clk 00:29:51]} {[%emt 00:04:12]} 32. Kf5 {[%clk 00:03:04]} {[%emt
00:00:31]} Ne4 {[%clk 00:29:48]} {[%emt 00:00:32]} 33. Rc1 {[%clk 00:02:17]}
{[%emt 00:01:17]} Rd6 {[%clk 00:29:07]} {[%emt 00:01:12]} 34. Ne6 {[%clk
00:01:21]} {[%emt 00:01:26]} b5 {[%clk 00:26:22]} {[%emt 00:03:15]} 35. Rc7+
{[%clk 00:01:00]} {[%emt 00:00:51]} Kb6 {[%clk 00:26:38]} {[%emt 00:00:13]} 36.
Rxh7 {[%clk 00:01:16]} {[%emt 00:00:14]} b4 {[%clk 00:25:42]} {[%emt 00:01:26]}
37. Nd4 {[%clk 00:00:52]} {[%emt 00:00:54]} Nc3 {[%clk 00:25:27]} {[%emt
00:00:44]} 38. h4 {[%clk 00:00:47]} {[%emt 00:00:35]} Nxa2 {[%clk 00:22:00]}
{[%emt 00:03:58]} 39. Rf7 {[%clk 00:00:51]} {[%emt 00:00:26]} Nc1 {[%clk
00:21:51]} {[%emt 00:00:39]} 40. h5 {[%clk 00:00:37]} {[%emt 00:00:45]} Nxb3
{[%clk 00:21:58]} {[%emt 00:00:23]} 41. Nxb3 {[%clk 00:30:01]} {[%emt
00:01:07]} a4 {[%clk 00:50:53]} {[%emt 00:01:34]} 42. Nd2 {[%clk 00:29:48]}
{[%emt 00:00:42]} a3 {[%clk 00:46:25]} {[%emt 00:04:58]} 43. h6 {[%clk
00:22:38]} {[%emt 00:07:41]} a2 {[%clk 00:46:31]} {[%emt 00:00:24]} 44. Nb3
{[%clk 00:20:41]} {[%emt 00:02:27]} Kb5 {[%clk 00:40:24]} {[%emt 00:06:37]} 45.
h7 {[%clk 00:19:15]} {[%emt 00:01:56]} Rd8 {[%clk 00:40:22]} {[%emt 00:00:31]}
46. Ra7 {[%clk 00:13:05]} {[%emt 00:06:40]} Kc4 {[%clk 00:40:09]} {[%emt
00:00:44]} 47. Nd2+ {[%clk 00:13:20]} {[%emt 00:00:15]} Kc3 {[%clk 00:39:29]}
{[%emt 00:01:10]} 48. Rxa2 {[%clk 00:13:33]} {[%emt 00:00:18]} b3 {[%clk
00:39:31]} {[%emt 00:00:27]} 1-0

[Event "Allsvenskan Div I 3 2021/2022: SS Manhem - SS Allians/Motala SS"]
[Site "Schackcentrum, Vegatan 20, Gothenburg, Sweden"]
[Date "2022.04.10"]
[Round "1.3"]
[White "Moborn, Anders"]
[Black "Akesson, Joel"]
[Result "1/2-1/2"]
[TimeControl "90 minutes for 40 moves + 30 minutes for the rest of the game + 30 seconds per move from move one."]
[BlackTitle "FM"]
[WhiteFideId "1706349"]
[BlackFideId "1705040"]
[WhiteElo "1984"]
[BlackElo "2222"]

1. d4 {[%clk 01:30:56]} {[%emt 00:00:03]} Nf6 {[%clk 01:29:54]} {[%emt
00:01:06]} 2. c4 {[%clk 01:31:06]} {[%emt 00:00:20]} c6 {[%clk 01:29:54]}
{[%emt 00:00:31]} 3. Nf3 {[%clk 01:29:33]} {[%emt 00:02:03]} d5 {[%clk
01:29:42]} {[%emt 00:00:41]} 4. e3 {[%clk 01:27:27]} {[%emt 00:02:37]} Bg4
{[%clk 01:27:55]} {[%emt 00:02:16]} 5. Nc3 {[%clk 01:23:29]} {[%emt 00:04:29]}
e6 {[%clk 01:23:39]} {[%emt 00:04:45]} 6. Qb3 {[%clk 01:13:01]} {[%emt
00:10:58]} Qc7 {[%clk 01:07:50]} {[%emt 00:16:18]} 7. Bd2 {[%clk 01:07:43]}
{[%emt 00:05:49]} Nbd7 {[%clk 00:58:36]} {[%emt 00:09:44]} 8. Rc1 {[%clk
01:01:58]} {[%emt 00:06:15]} Qb6 {[%clk 00:50:05]} {[%emt 00:08:59]} 9. Qxb6
{[%clk 00:55:06]} {[%emt 00:07:25]} axb6 {[%clk 00:49:10]} {[%emt 00:01:24]} 10.
cxd5 {[%clk 00:38:56]} {[%emt 00:16:40]} exd5 {[%clk 00:47:14]} {[%emt
00:02:26]} 11. Be2 {[%clk 00:39:08]} {[%emt 00:00:19]} Bd6 {[%clk 00:37:53]}
{[%emt 00:09:50]} 12. h3 {[%clk 00:37:34]} {[%emt 00:02:04]} Bf5 {[%clk
00:33:24]} {[%emt 00:04:58]} 13. Nh4 {[%clk 00:35:52]} {[%emt 00:02:13]} Be4
{[%clk 00:28:16]} {[%emt 00:05:37]} 14. a3 {[%clk 00:31:23]} {[%emt 00:05:01]}
h6 {[%clk 00:22:20]} {[%emt 00:06:26]} 15. Nxe4 {[%clk 00:21:36]} {[%emt
00:10:17]} Nxe4 {[%clk 00:22:29]} {[%emt 00:00:19]} 16. Nf5 {[%clk 00:15:24]}
{[%emt 00:06:43]} Bf8 {[%clk 00:21:36]} {[%emt 00:01:22]} 17. Bd3 {[%clk
00:14:14]} {[%emt 00:01:42]} g6 {[%clk 00:16:22]} {[%emt 00:05:43]} 18. Bxe4
{[%clk 00:12:17]} {[%emt 00:02:28]} dxe4 {[%clk 00:16:15]} {[%emt 00:00:36]} 19.
Ng3 {[%clk 00:12:38]} {[%emt 00:00:10]} f5 {[%clk 00:15:37]} {[%emt 00:01:07]}
20. Rc2 {[%clk 00:12:42]} {[%emt 00:00:27]} Bd6 {[%clk 00:14:26]} {[%emt
00:01:40]} 21. Ne2 {[%clk 00:13:04]} {[%emt 00:00:09]} Nf6 {[%clk 00:13:26]}
{[%emt 00:01:27]} 22. Bc1 {[%clk 00:11:47]} {[%emt 00:01:50]} b5 {[%clk
00:11:56]} {[%emt 00:01:59]} 23. b4 {[%clk 00:11:22]} {[%emt 00:00:56]} Nd5
{[%clk 00:07:56]} {[%emt 00:04:29]} 24. Nc3 {[%emt 00:01:11]} Nb6 {[%clk
00:06:16]} {[%emt 00:02:08]} 25. Ke2 {[%clk 00:10:09]} {[%emt 00:01:05]} Kd7
{[%clk 00:04:53]} {[%emt 00:01:52]} 26. Rd1 {[%clk 00:10:19]} {[%emt 00:00:21]}
Nd5 {[%clk 00:04:37]} {[%emt 00:00:45]} 27. Rf1 {[%clk 00:05:23]} {[%emt
00:05:26]} Rae8 {[%clk 00:03:46]} {[%emt 00:01:18]} 28. f3 {[%clk 00:04:37]}
{[%emt 00:01:19]} exf3+ {[%clk 00:03:32]} {[%emt 00:00:44]} 29. Kxf3 {[%clk
00:03:49]} {[%emt 00:01:19]} Re6 {[%clk 00:03:03]} {[%emt 00:00:58]} 30. Nxd5
{[%clk 00:03:28]} {[%emt 00:00:52]} cxd5 {[%clk 00:03:28]} {[%emt 00:00:04]} 31.
g3 {[%clk 00:02:58]} {[%emt 00:01:00]} h5 {[%clk 00:03:10]} {[%emt 00:00:48]}
32. h4 {[%clk 00:02:53]} {[%emt 00:00:36]} Ree8 {[%clk 00:03:22]} {[%emt
00:00:17]} 33. Rff2 {[%clk 00:03:03]} {[%emt 00:00:20]} Rc8 {[%clk 00:03:20]}
{[%emt 00:00:32]} 34. Rxc8 {[%clk 00:02:05]} {[%emt 00:01:29]} Rxc8 {[%clk
00:03:42]} {[%emt 00:00:06]} 35. Bb2 {[%clk 00:02:27]} {[%emt 00:00:10]} Rc4
{[%clk 00:03:21]} {[%emt 00:00:50]} 36. Re2 {[%clk 00:02:40]} {[%emt 00:00:18]}
Ke6 {[%clk 00:03:24]} {[%emt 00:00:26]} 37. Rg2 {[%clk 00:02:57]} {[%emt
00:00:14]} Rc8 {[%clk 00:03:11]} {[%emt 00:00:41]} 38. Re2 {[%clk 00:03:01]}
{[%emt 00:00:27]} Be7 {[%clk 00:02:48]} {[%emt 00:00:52]} 39. Rg2 {[%clk
00:03:21]} {[%emt 00:00:11]} Bd6 {[%clk 00:03:04]} {[%emt 00:00:14]} 40. Re2
{[%clk 00:03:41]} {[%emt 00:00:11]} Rc7 {[%clk 00:03:22]} {[%emt 00:00:10]} 41.
Rg2 {[%clk 00:03:56]} {[%emt 00:00:17]} Rg7 {[%clk 00:02:54]} {[%emt 00:00:52]}
42. Bc3 {[%clk 00:02:32]} {[%emt 00:02:01]} Rc7 {[%clk 00:01:35]} {[%emt
00:01:48]} 43. Bb2 {[%clk 00:02:14]} {[%emt 00:00:48]} Kf6 {[%clk 00:00:47]}
{[%emt 00:01:18]} 44. Re2 {[%clk 00:01:40]} {[%emt 00:01:04]} g5 {[%emt
00:08:45]} 45. hxg5+ {[%clk 00:28:45]} Kxg5 {[%clk 00:22:50]} 1/2-1/2

[Event "Allsvenskan Div I 3 2021/2022: SS Manhem - SS Allians/Motala SS"]
[Site "Schackcentrum, Vegatan 20, Gothenburg, Sweden"]
[Date "2022.04.10"]
[Round "1.4"]
[White "Troedsson, Anton"]
[Black "Kardell, Mathias"]
[Result "1-0"]
[TimeControl "90 minutes for 40 moves + 30 minutes for the rest of the game + 30 seconds per move from move one."]
[WhiteFideId "1746006"]
[BlackFideId "1710109"]
[WhiteElo "2119"]
[BlackElo "2031"]

1. Nf3 {[%clk 01:28:13]} {[%emt 00:02:45]} d5 {[%clk 01:30:51]} {[%emt
00:00:10]} 2. b3 {[%clk 01:27:26]} {[%emt 00:01:17]} Nf6 {[%clk 01:30:56]}
{[%emt 00:00:25]} 3. Bb2 {[%clk 01:27:46]} {[%emt 00:00:09]} Bf5 {[%clk
01:28:43]} {[%emt 00:02:44]} 4. g3 {[%clk 01:26:20]} {[%emt 00:01:57]} c5
{[%clk 01:27:39]} {[%emt 00:01:34]} 5. Bg2 {[%clk 01:26:14]} {[%emt 00:00:35]}
Nc6 {[%clk 01:27:30]} {[%emt 00:00:39]} 6. O-O {[%clk 01:24:01]} {[%emt
00:02:43]} Qc7 {[%clk 01:23:49]} {[%emt 00:04:11]} 7. Nh4 {[%clk 01:02:47]}
{[%emt 00:21:44]} Be4 {[%clk 01:21:38]} {[%emt 00:02:41]} 8. f3 {[%clk
00:58:25]} {[%emt 00:04:52]} Bg6 {[%clk 01:21:56]} {[%emt 00:00:12]} 9. Nxg6
{[%clk 00:48:40]} {[%emt 00:10:15]} hxg6 {[%clk 01:20:30]} {[%emt 00:01:56]} 10.
f4 {[%clk 00:44:56]} {[%emt 00:04:14]} e5 {[%clk 01:15:45]} {[%emt 00:05:15]}
11. e3 {[%clk 00:43:50]} {[%emt 00:01:36]} O-O-O {[%clk 01:12:45]} {[%emt
00:03:30]} 12. c4 {[%clk 00:39:37]} {[%emt 00:04:44]} d4 {[%clk 01:01:33]}
{[%emt 00:11:42]} 13. Bxc6 {[%clk 00:27:00]} {[%emt 00:13:06]} bxc6 {[%clk
00:57:25]} {[%emt 00:04:38]} 14. fxe5 {[%clk 00:25:33]} {[%emt 00:01:58]} Qxe5
{[%clk 00:56:52]} {[%emt 00:01:03]} 15. Qf3 {[%clk 00:25:39]} {[%emt 00:00:23]}
Kc7 {[%clk 00:43:13]} {[%emt 00:14:08]} 16. Na3 {[%clk 00:21:43]} {[%emt
00:04:26]} Qh5 {[%clk 00:36:12]} {[%emt 00:07:32]} 17. Qxh5 {[%clk 00:22:02]}
{[%emt 00:00:11]} Rxh5 {[%clk 00:36:33]} {[%emt 00:00:09]} 18. exd4 {[%clk
00:13:40]} {[%emt 00:08:52]} cxd4 {[%clk 00:36:00]} {[%emt 00:01:04]} 19. d3
{[%clk 00:12:45]} {[%emt 00:01:25]} Rd7 {[%clk 00:35:14]} {[%emt 00:01:15]} 20.
Rae1 {[%clk 00:12:20]} {[%emt 00:00:55]} Ng4 {[%clk 00:30:10]} {[%emt
00:05:34]} 21. Rf4 {[%clk 00:08:56]} {[%emt 00:03:54]} f5 {[%clk 00:29:40]}
{[%emt 00:01:00]} 22. Re2 {[%clk 00:08:28]} {[%emt 00:00:58]} Bd6 {[%clk
00:19:45]} {[%emt 00:10:25]} 23. Rf1 {[%clk 00:07:30]} {[%emt 00:01:28]} Rd8
{[%clk 00:18:39]} {[%emt 00:01:36]} 24. c5 {[%clk 00:02:55]} {[%emt 00:05:05]}
Bxc5 {[%clk 00:16:18]} {[%emt 00:02:51]} 25. Rc1 {[%clk 00:03:08]} {[%emt
00:00:18]} Bb4 {[%clk 00:05:13]} {[%emt 00:11:36]} 26. Nb5+ {[%clk 00:03:04]}
{[%emt 00:00:32]} Kb6 {[%clk 00:05:12]} {[%emt 00:00:33]} 27. Nxd4 {[%clk
00:02:27]} {[%emt 00:01:07]} Bc5 {[%clk 00:03:29]} {[%emt 00:02:13]} 28. Rxc5
{[%clk 00:02:47]} {[%emt 00:00:10]} 1-0